bitfinex/quotes_BTCUSD_20220201
["timestamp","ask_amount","ask_price","bid_price","bid_amount"]
[1643688350300,0.38813779,38612.0,38605.0,0.0519]
[1643688350502,0.38813779,38612.0,38606.0,0.57545713]
[1643688350698,0.38813779,38612.0,38607.0,0.0519]
[1643688350898,0.00693779,38612.0,38609.0,0.064744]
[1643688351099,0.09800115,38612.0,38610.0,0.24530932]
[1643688351306,0.781913,38617.0,38612.0,0.09622645]
[1643688351307,0.09122294,38613.0,38612.0,0.09622645]
[1643688351953,0.00278175,38613.0,38612.0,0.09622645]
[1643688352153,0.00104722,38613.0,38612.0,0.09622645]
[1643688353254,0.09439131,38613.0,38612.0,0.09622645]
[1643688353456,0.09439131,38613.0,38609.0,0.1294865]
[1643688353654,0.09439131,38613.0,38610.0,0.05]
[1643688353856,0.09439131,38613.0,38607.0,0.1019]
[1643688354056,0.00104722,38609.0,38607.0,0.0519]
[1643688354260,0.09334409,38613.0,38607.0,0.1019]
[1643688354455,0.00104722,38609.0,38607.0,0.1019]
[1643688354657,0.00104722,38611.0,38607.0,0.1019]
[1643688354856,0.09334409,38613.0,38607.0,0.1019]
[1643688354857,0.09484391,38613.0,38607.0,0.1019]
[1643688355056,0.00104722,38609.0,38607.0,0.05]
[1643688355255,0.00104722,38612.0,38605.0,0.29195481]
[1643688355506,0.09484391,38613.0,38605.0,0.29195481]
[1643688355708,0.00104722,38612.0,38605.0,0.29195481]
[1643688355906,0.00104722,38609.0,38607.0,0.0647515]
[1643688356506,0.00104722,38611.0,38607.0,0.0597515]
[1643688356706,0.00104722,38609.0,38607.0,0.1097515]
[1643688357108,0.00104722,38609.0,38607.0,0.1745045]
[1643688357509,0.00104722,38609.0,38607.0,0.1695045]
[1643688357707,0.09479408,38613.0,38607.0,0.1695045]
[1643688357909,0.00104722,38611.0,38608.0,0.2446557]
[1643688358107,0.00104722,38611.0,38607.0,0.114753]
[1643688358509,0.00104722,38611.0,38607.0,0.35759259]
[1643688359153,0.00104722,38611.0,38610.0,0.064746]
[1643688359355,0.00104722,38611.0,38610.0,0.114746]
[1643688360556,0.00104722,38611.0,38610.0,0.05]
[1643688361255,0.00144928,38613.0,38610.0,0.05]
[1643688361856,0.00104722,38614.0,38611.0,0.064745]
[1643688362059,0.00104722,38612.0,38611.0,0.064745]
[1643688362256,0.00104722,38612.0,38610.0,0.05]
[1643688362655,0.00104722,38612.0,38605.0,0.1]
[1643688362909,0.00104722,38609.0,38606.0,0.2511605]
[1643688363101,0.00104722,38609.0,38606.0,0.3011605]
[1643688363503,0.101189,38607.0,38606.0,0.24425077]
[1643688363702,0.101189,38607.0,38606.0,0.84343376]
[1643688363903,0.101189,38607.0,38606.0,0.71393299]
[1643688364105,0.1193,38614.0,38606.0,0.64918299]
[1643688364106,0.00104722,38612.0,38606.0,0.64918299]
[1643688364305,0.00104722,38614.0,38606.0,0.30038499]
[1643688364505,0.00104722,38614.0,38608.0,0.064748]
[1643688364506,0.00145071,38613.0,38608.0,0.064748]
[1643688364709,0.00145071,38613.0,38609.0,0.27191762]
[1643688364903,0.00145071,38613.0,38609.0,0.37381762]
[1643688365503,0.00104722,38614.0,38609.0,0.37381762]
[1643688365704,0.0014508,38613.0,38609.0,0.37381762]
[1643688365904,0.0014508,38613.0,38610.0,0.19421138]
[1643688366104,0.0014508,38613.0,38611.0,0.24905533]
[1643688366303,0.0014508,38613.0,38611.0,0.29905533]
[1643688366506,0.09306053,38616.0,38611.0,0.29905533]
[1643688366751,0.09306053,38616.0,38612.0,0.06474109]
[1643688366950,0.00145029,38614.0,38612.0,0.06474109]
[1643688367450,0.00145029,38614.0,38613.0,0.2408079]
[1643688367850,0.00104722,38618.0,38613.0,0.05]
[1643688368051,0.00145027,38615.0,38614.0,0.06474023]
[1643688368251,0.00145027,38615.0,38614.0,0.11474023]
[1643688368452,0.00145027,38615.0,38614.0,0.17948123]
[1643688368652,0.00249749,38615.0,38614.0,0.11474023]
[1643688369151,0.00249749,38615.0,38614.0,0.05]
[1643688369351,0.00104722,38615.0,38612.0,0.11474764]
[1643688369552,0.40179402,38621.0,38612.0,0.06474764]
[1643688369553,0.00104722,38613.0,38612.0,0.06474764]
[1643688369951,0.00104722,38613.0,38612.0,0.19424264]
[1643688370413,0.00104722,38613.0,38612.0,0.24424264]
[1643688370605,0.09444787,38618.0,38612.0,0.24424264]
[1643688370805,0.0014504,38614.0,38613.0,0.064745]
[1643688371604,0.00104722,38617.0,38613.0,0.064745]
[1643688371804,0.00145039,38615.0,38613.0,0.064745]
[1643688372205,0.00145039,38615.0,38613.0,0.12948951]
[1643688372408,0.00145039,38615.0,38613.0,0.17948951]
[1643688372806,0.00104722,38614.0,38613.0,0.17948951]
[1643688373805,0.00104722,38614.0,38613.0,0.064745]
[1643688374009,0.002,38621.0,38613.0,0.52953644]
[1643688374262,0.00780059,38621.0,38618.0,0.1]
[1643688374460,0.00780059,38621.0,38620.0,0.798798]
[1643688374660,0.00780059,38621.0,38620.0,0.850698]
[1643688374864,0.00780059,38621.0,38620.0,0.55693287]
[1643688375069,0.00780059,38621.0,38620.0,1.24464689]
[1643688375262,0.00780059,38621.0,38620.0,1.34043266]
[1643688375561,0.002,38621.0,38620.0,1.34043266]
[1643688376362,0.002,38621.0,38620.0,1.39043266]
[1643688377362,0.002,38621.0,38620.0,2.76643266]
[1643688377762,0.002,38621.0,38620.0,3.54322266]
[1643688378216,0.002,38621.0,38620.0,2.16722266]
[1643688378416,0.002,38621.0,38620.0,1.42950864]
[1643688378614,0.002,38621.0,38620.0,1.47950864]
[1643688380121,0.00192741,38621.0,38620.0,1.47950864]
[1643688381421,0.00192741,38621.0,38620.0,1.42950864]
[1643688382357,0.00192741,38621.0,38620.0,1.47950864]
[1643688382558,0.00192741,38621.0,38620.0,2.80550864]
[1643688382763,0.00192741,38621.0,38620.0,1.42950864]
[1643688382962,0.00192741,38621.0,38620.0,1.47950864]
[1643688383160,0.00192741,38621.0,38620.0,1.42950864]
[1643688383360,0.00192741,38621.0,38620.0,1.47950864]
[1643688383560,0.00192741,38621.0,38620.0,1.42950864]
[1643688384360,0.00192741,38621.0,38620.0,1.47950864]
[1643688384864,0.00192741,38621.0,38620.0,1.71769365]
[1643688385265,0.00045107,38622.0,38621.0,0.45]
[1643688385514,0.00045107,38622.0,38621.0,1.99107567]
[1643688385713,0.00045107,38622.0,38621.0,2.14107567]
[1643688385916,0.00045107,38622.0,38621.0,1.69107567]
[1643688386113,0.001,38625.0,38623.0,0.064712]
[1643688386314,0.001,38625.0,38624.0,1.02450386]
[1643688386813,0.001,38625.0,38624.0,1.12450386]
[1643688387313,0.001,38625.0,38624.0,2.00122386]
[1643688388212,0.001,38625.0,38624.0,1.6617583]
[1643688388612,0.001,38625.0,38624.0,1.7617583]
[1643688388813,0.001,38625.0,38624.0,1.6617583]
[1643688389656,0.001,38625.0,38624.0,1.377418]
[1643688395508,0.001,38625.0,38624.0,1.427418]
[1643688395905,0.001,38625.0,38624.0,1.377418]
[1643688396107,0.001,38625.0,38624.0,2.853418]
[1643688396762,0.001,38625.0,38624.0,1.377418]
[1643688396963,0.01766052,38637.0,38630.0,0.0647115]
[1643688397263,0.01766052,38637.0,38630.0,0.2294235]
[1643688397462,0.01766052,38637.0,38630.0,0.3294235]
[1643688398065,0.64806421,38639.0,38630.0,0.3294235]
[1643688398262,0.64406421,38639.0,38631.0,0.348798]
[1643688398662,0.64406421,38639.0,38632.0,0.1]
[1643688398871,0.64406421,38639.0,38632.0,0.2]
[1643688399563,0.09530277,38637.0,38632.0,0.2]
[1643688399762,0.09530277,38637.0,38632.0,0.05]
[1643688399964,0.09530277,38637.0,38631.0,0.15]
[1643688400163,0.09530277,38637.0,38631.0,0.1]
[1643688400411,0.09530277,38637.0,38630.0,0.05]
[1643688400807,0.00166694,38636.0,38631.0,0.348798]
[1643688401004,0.00166694,38636.0,38631.0,0.58883354]
[1643688401207,0.00166694,38636.0,38632.0,0.1]
[1643688401420,0.00166694,38636.0,38633.0,0.348798]
[1643688401604,0.00166694,38636.0,38633.0,0.398798]
[1643688401804,0.64406421,38639.0,38634.0,0.1]
[1643688402004,0.00166693,38636.0,38634.0,0.1]
[1643688402805,0.00166693,38636.0,38632.0,0.05]
[1643688403004,0.26606421,38639.0,38633.0,0.348798]
[1643688403207,0.34370112,38639.0,38634.0,0.24227314]
[1643688403405,0.00156836,38637.0,38634.0,0.41479144]
[1643688403610,0.00156836,38637.0,38635.0,0.26479144]
[1643688403810,0.00156836,38637.0,38636.0,0.400698]
[1643688404007,0.00156836,38637.0,38636.0,0.76548944]
[1643688404256,0.00156836,38637.0,38636.0,1.277178]
[1643688404460,0.001,38642.0,38638.0,0.3]
[1643688404656,0.001,38642.0,38641.0,0.35502818]
[1643688404862,0.001,38642.0,38641.0,0.67171962]
[1643688405058,0.001,38642.0,38641.0,0.72171962]
[1643688405258,0.001,38642.0,38641.0,0.60692818]
[1643688405459,0.003,38650.0,38642.0,0.45]
[1643688405658,0.003,38650.0,38646.0,0.348798]
[1643688405964,0.003,38650.0,38647.0,0.500698]
[1643688406157,0.001,38648.0,38647.0,1.176958]
[1643688406959,0.001,38648.0,38647.0,0.82816]
[1643688407164,0.53930854,38648.0,38647.0,0.82816]
[1643688407460,0.001,38648.0,38647.0,0.82816]
[1643688407660,0.001,38648.0,38647.0,1.32816]
[1643688408106,0.001,38648.0,38647.0,1.676958]
[1643688408708,0.001,38648.0,38647.0,1.776958]
[1643688409108,0.50329044,38655.0,38647.0,2.07578423]
[1643688409310,0.38719044,38655.0,38651.0,0.348798]
[1643688409509,0.00669044,38655.0,38652.0,0.348798]
[1643688409709,0.00669044,38655.0,38654.0,0.348798]
[1643688409911,0.00669044,38655.0,38654.0,0.500698]
[1643688410110,0.01939284,38660.0,38654.0,0.65332793]
[1643688410311,0.01939284,38660.0,38655.0,0.1]
[1643688410509,0.01939284,38660.0,38656.0,0.348798]
[1643688410713,0.2395302,38661.0,38655.0,0.348798]
[1643688410912,0.2395302,38661.0,38654.0,0.05]
[1643688411115,0.2395302,38661.0,38651.0,0.05]
[1643688411316,0.2395302,38661.0,38652.0,0.5]
[1643688411513,0.21351052,38658.0,38653.0,0.07895424]
[1643688411754,0.2395302,38661.0,38653.0,0.05]
[1643688411954,0.2395302,38661.0,38651.0,0.05]
[1643688412156,0.2395302,38661.0,38651.0,0.0519]
[1643688412757,0.00175646,38659.0,38651.0,0.0519]
[1643688413159,0.26973777,38659.0,38651.0,0.0519]
[1643688413358,0.00175646,38659.0,38651.0,0.0519]
[1643688413662,0.00175646,38659.0,38651.0,0.29994778]
[1643688413859,0.00175651,38657.0,38655.0,0.348798]
[1643688414058,0.00175651,38657.0,38656.0,0.0519]
[1643688414259,0.00175651,38657.0,38656.0,0.450698]
[1643688414659,0.00175651,38657.0,38656.0,0.64738349]
[1643688414960,0.01780925,38664.0,38656.0,0.450698]
[1643688415158,0.01780925,38664.0,38657.0,0.05]
[1643688415159,0.30175647,38658.0,38657.0,0.05]
[1643688415414,0.00175647,38658.0,38657.0,0.05]
[1643688415609,0.00175647,38658.0,38653.0,0.05]
[1643688415808,0.00175647,38658.0,38654.0,0.0519]
[1643688416414,0.00155986,38659.0,38655.0,0.348798]
[1643688416611,0.00155986,38659.0,38656.0,0.0519]
[1643688416812,0.00155986,38659.0,38656.0,0.1519]
[1643688417110,0.00155986,38659.0,38656.0,0.0519]
[1643688417313,0.12453849,38665.0,38656.0,0.1019]
[1643688417511,0.1183,38665.0,38660.0,0.0966721]
[1643688417711,0.002,38665.0,38660.0,0.1466721]
[1643688418312,0.002,38665.0,38661.0,0.25495537]
[1643688418511,0.002,38665.0,38661.0,0.0519]
[1643688419764,0.002,38665.0,38661.0,0.44955239]
[1643688419964,0.002,38665.0,38661.0,0.51421405]
[1643688420165,0.002,38665.0,38661.0,0.11656166]
[1643688421066,0.002,38665.0,38661.0,0.11935788]
[1643688421270,0.00368032,38665.0,38661.0,0.11935788]
[1643688421467,0.00368032,38665.0,38661.0,0.18401788]
[1643688421868,0.00368032,38665.0,38664.0,1.7404]
[1643688422068,0.00368032,38665.0,38664.0,1.7904]
[1643688422270,0.002,38665.0,38664.0,1.7904]
[1643688422469,0.00368032,38665.0,38664.0,2.139198]
[1643688423403,0.002,38665.0,38664.0,2.239198]
[1643688423606,0.002,38665.0,38664.0,2.291098]
[1643688424005,0.002,38665.0,38664.0,3.067018]
[1643688424805,0.002,38665.0,38664.0,2.967018]
[1643688426654,0.002,38665.0,38664.0,3.067018]
[1643688427459,0.452,38665.0,38664.0,2.915118]
[1643688427862,0.452,38665.0,38664.0,1.174718]
[1643688428059,0.452,38665.0,38664.0,0.82592]
[1643688428461,0.23378859,38665.0,38664.0,0.82592]
[1643688429261,0.98378859,38665.0,38664.0,0.82472]
[1643688429463,0.9,38664.0,38661.0,0.00379622]
[1643688429660,1.01865342,38662.0,38661.0,0.00379622]
[1643688429862,0.66613775,38662.0,38661.0,0.00379622]
[1643688430161,0.1,38664.0,38661.0,0.00379622]
[1643688430417,0.23378859,38665.0,38661.0,0.00379622]
[1643688430609,0.1,38664.0,38661.0,0.00379622]
[1643688431010,0.34279227,38664.0,38661.0,0.00379622]
[1643688431409,0.23538368,38665.0,38661.0,0.00379622]
[1643688431623,0.1,38664.0,38661.0,0.00379622]
[1643688432211,0.1015951,38664.0,38661.0,0.00379622]
[1643688432910,0.23748349,38663.0,38661.0,0.00379622]
[1643688433311,0.002,38665.0,38661.0,0.00379622]
[1643688433513,0.00159511,38664.0,38661.0,0.00379622]
[1643688434274,0.00159511,38664.0,38657.0,0.06467791]
[1643688434275,0.00159511,38664.0,38657.0,0.04685056]
[1643688434468,0.002,38665.0,38657.0,0.04685056]
[1643688434870,0.00159627,38664.0,38657.0,0.04685056]
[1643688435669,0.22824223,38665.0,38657.0,0.04685056]
[1643688435670,0.10008734,38660.0,38657.0,0.04685056]
[1643688436471,0.00159631,38662.0,38657.0,0.04685056]
[1643688436973,0.22824223,38665.0,38657.0,0.04685056]
[1643688437172,0.00159633,38661.0,38657.0,0.04685056]
[1643688438010,0.22824223,38665.0,38657.0,0.04685056]
[1643688438206,0.002,38665.0,38657.0,0.04685056]
[1643688438408,0.00159607,38661.0,38658.0,0.31931076]
[1643688438808,0.00159607,38661.0,38660.0,0.348798]
[1643688439007,0.00159607,38661.0,38660.0,0.61319062]
[1643688439206,0.00159607,38661.0,38660.0,0.498798]
[1643688439410,0.002,38665.0,38661.0,0.064663]
[1643688439607,0.002,38665.0,38662.0,0.348798]
[1643688439806,0.002,38665.0,38663.0,0.06466347]
[1643688441212,0.002,38665.0,38664.0,0.348798]
[1643688441512,0.002,38665.0,38664.0,0.398798]
[1643688441756,0.002,38665.0,38664.0,0.498798]
[1643688442156,0.002,38665.0,38664.0,0.398798]
[1643688442656,0.002,38665.0,38664.0,0.64499868]
[1643688442856,0.002,38665.0,38664.0,0.398798]
[1643688443057,0.002,38665.0,38664.0,0.05]
[1643688443856,0.002,38665.0,38660.0,0.15]
[1643688444055,0.09395919,38661.0,38660.0,0.05]
[1643688444256,0.09395919,38661.0,38660.0,0.348798]
[1643688444456,0.09395919,38661.0,38657.0,0.18124357]
[1643688444657,0.002,38665.0,38657.0,0.18124357]
[1643688445156,0.002,38665.0,38659.0,0.19399505]
[1643688445610,0.27779484,38661.0,38659.0,0.19399505]
[1643688445812,0.27779484,38661.0,38657.0,0.12934357]
[1643688446611,0.29986871,38659.0,38657.0,0.12934357]
[1643688446812,0.29986871,38659.0,38653.0,0.16784171]
[1643688446813,0.38244343,38659.0,38653.0,0.16784171]
[1643688447012,0.48244343,38659.0,38653.0,0.16784171]
[1643688447213,0.38244343,38659.0,38653.0,0.16784171]
[1643688447410,0.08257472,38659.0,38653.0,0.16784171]
[1643688448010,0.26447438,38658.0,38653.0,0.16784171]
[1643688448211,0.26596813,38658.0,38653.0,0.16784171]
[1643688448410,0.26596813,38658.0,38653.0,0.12936541]
[1643688449012,0.26447438,38658.0,38653.0,0.12936541]
[1643688449263,0.00149375,38657.0,38654.0,0.05]
[1643688450158,0.27816441,38658.0,38654.0,0.05]
[1643688450361,0.00149375,38657.0,38654.0,0.05]
[1643688451364,0.08257472,38659.0,38654.0,0.05]
[1643688451763,0.00175668,38657.0,38654.0,0.05]
[1643688451963,0.21406023,38657.0,38654.0,0.05]
[1643688452664,0.21230355,38657.0,38654.0,0.05]
[1643688453807,0.08257472,38659.0,38654.0,0.05]
[1643688454808,0.08257472,38659.0,38653.0,0.12936541]
[1643688455012,0.20560072,38658.0,38653.0,0.12936541]
[1643688455211,0.21246881,38658.0,38650.0,0.12937655]
[1643688455410,0.05,38655.0,38650.0,0.17937655]
[1643688455610,0.0996047,38652.0,38650.0,0.17937655]
[1643688456112,0.0996047,38652.0,38647.0,0.12939106]
[1643688456113,0.0519,38651.0,38647.0,0.12939106]
[1643688456312,0.0519,38651.0,38639.0,0.129401]
[1643688456313,0.26299766,38650.0,38638.0,0.05803766]
[1643688456512,0.26299766,38650.0,38640.0,0.13115072]
[1643688456766,0.05,38647.0,38640.0,0.13115072]
[1643688456965,0.22061597,38642.0,38640.0,0.13115072]
[1643688457165,0.05,38647.0,38640.0,0.13115072]
[1643688457364,0.0519,38646.0,38640.0,0.13115072]
[1643688457569,0.0519,38646.0,38640.0,0.1294111]
[1643688457864,0.0519,38646.0,38640.0,0.1794111]
[1643688458064,0.23116125,38644.0,38640.0,0.1794111]
[1643688458270,2.76280294,38641.0,38640.0,0.1794111]
[1643688458664,2.86339996,38641.0,38640.0,0.1794111]
[1643688459064,2.76280294,38641.0,38640.0,0.1794111]
[1643688459264,0.23116125,38644.0,38640.0,0.1794111]
[1643688460269,0.23116125,38644.0,38640.0,0.18115948]
[1643688460510,0.07976201,38643.0,38640.0,0.18115948]
[1643688460710,0.05,38647.0,38640.0,0.18115948]
[1643688460915,0.05,38647.0,38640.0,0.34069323]
[1643688461110,0.05,38647.0,38640.0,0.1794111]
[1643688461310,0.05,38647.0,38641.0,0.064703]
[1643688461708,0.29383939,38647.0,38641.0,0.064703]
[1643688462309,0.09483604,38645.0,38641.0,0.064703]
[1643688462510,0.05,38647.0,38641.0,0.064703]
[1643688463312,0.30995267,38646.0,38640.0,0.18115946]
[1643688463512,0.30995267,38646.0,38640.0,0.1794111]
[1643688463711,0.56205202,38646.0,38640.0,0.18115946]
[1643688463913,0.05,38647.0,38641.0,0.064702]
[1643688464457,0.10412598,38645.0,38641.0,0.064702]
[1643688465264,0.05,38647.0,38642.0,0.06470208]
[1643688465462,0.05,38647.0,38644.0,0.064693]
[1643688465659,0.05,38647.0,38645.0,0.400698]
[1643688466059,0.05,38647.0,38645.0,0.450698]
[1643688467460,0.05,38647.0,38645.0,0.51538835]
[1643688469915,0.00140685,38651.0,38645.0,0.63007435]
[1643688470116,0.00140685,38651.0,38648.0,0.06468]
[1643688470312,0.00140685,38651.0,38649.0,0.450698]
[1643688470522,0.00140685,38651.0,38650.0,0.348798]
[1643688470716,0.00140685,38651.0,38650.0,0.500698]
[1643688470916,0.00140685,38651.0,38650.0,1.12778468]
[1643688471316,0.0014802,38652.0,38650.0,1.12778468]
[1643688471517,0.0014802,38652.0,38651.0,0.55687198]
[1643688471757,0.0014802,38652.0,38651.0,0.75877198]
[1643688471957,0.0014802,38652.0,38651.0,0.680052]
[1643688472157,0.01812216,38659.0,38651.0,0.93760961]
[1643688472360,0.00148018,38653.0,38651.0,0.93760961]
[1643688472558,0.00148018,38653.0,38652.0,0.68887428]
[1643688472757,0.00148018,38653.0,38652.0,0.74077428]
[1643688473262,0.10201467,38660.0,38654.0,0.064679]
[1643688473458,0.10201467,38660.0,38656.0,0.06467919]
[1643688473658,0.2331525,38661.0,38656.0,0.06467919]
[1643688474260,0.2331525,38661.0,38656.0,0.16657919]
[1643688474461,0.22723282,38661.0,38656.0,0.16657919]
[1643688474661,0.22723282,38661.0,38656.0,0.1019]
[1643688474860,0.00147009,38660.0,38656.0,0.1019]
[1643688475059,0.00147009,38660.0,38656.0,0.0519]
[1643688475719,0.22723282,38661.0,38656.0,0.0519]
[1643688475924,0.00146469,38660.0,38656.0,0.0519]
[1643688476119,0.09280402,38659.0,38654.0,0.11468451]
[1643688477119,0.00146472,38658.0,38654.0,0.11468451]
[1643688478119,0.09280402,38659.0,38654.0,0.11468451]
[1643688478318,0.00146696,38658.0,38654.0,0.11468451]
[1643688478521,0.27455422,38655.0,38654.0,0.11468451]
[1643688479160,0.27445967,38655.0,38654.0,0.11468451]
[1643688479558,0.27445967,38655.0,38654.0,0.05]
[1643688479757,0.27445967,38655.0,38652.0,0.06468721]
[1643688479758,0.27445967,38655.0,38652.0,0.11468721]
[1643688479959,0.27445967,38655.0,38652.0,0.06468721]
[1643688480161,0.00146699,38656.0,38652.0,0.11468721]
[1643688480557,0.09280402,38659.0,38652.0,0.11468721]
[1643688480958,0.00146855,38656.0,38652.0,0.11468721]
[1643688481558,0.00146855,38656.0,38652.0,0.17937121]
[1643688481764,0.36687437,38659.0,38652.0,0.17937121]
[1643688481960,0.00150962,38656.0,38652.0,0.17937121]
[1643688482917,0.36687437,38659.0,38652.0,0.17937121]
[1643688483208,0.00150962,38656.0,38652.0,0.17937121]
[1643688483409,0.08712165,38653.0,38652.0,0.17937121]
[1643688484008,0.08712165,38653.0,38652.0,0.52816921]
[1643688484608,0.08712165,38653.0,38652.0,0.47816921]
[1643688485008,0.00150261,38654.0,38652.0,0.47816921]
[1643688485208,0.00150261,38654.0,38652.0,0.12937121]
[1643688485408,0.27407035,38659.0,38652.0,0.12937121]
[1643688485608,0.00150261,38655.0,38652.0,0.12937121]
[1643688485808,0.00150261,38655.0,38652.0,0.17937121]
[1643688486511,0.08477026,38656.0,38652.0,0.17937121]
[1643688486765,0.00150261,38655.0,38652.0,0.17937121]
[1643688487764,0.08477026,38656.0,38652.0,0.17937121]
[1643688487965,0.00150226,38655.0,38652.0,0.17937121]
[1643688488767,0.00150226,38655.0,38652.0,0.17547207]
[1643688488971,0.08477026,38656.0,38652.0,0.17547207]
[1643688489167,0.00150226,38655.0,38652.0,0.16747801]
[1643688489369,0.00150226,38655.0,38652.0,0.16247801]
[1643688490171,0.08477026,38656.0,38652.0,0.16247801]
[1643688490420,0.00150226,38655.0,38652.0,0.16247801]
[1643688490611,0.08127252,38656.0,38652.0,0.16247801]
[1643688491513,0.08127252,38656.0,38652.0,0.16110883]
[1643688491910,0.08127252,38656.0,38652.0,0.15686883]
[1643688492312,0.08127252,38656.0,38652.0,0.15581883]
[1643688492511,0.08127252,38656.0,38652.0,0.14119883]
[1643688493814,0.08127252,38656.0,38652.0,0.11529883]
[1643688494660,0.08127252,38656.0,38652.0,0.06529883]
[1643688494859,0.27407035,38659.0,38652.0,0.11529883]
[1643688495059,0.27407035,38659.0,38654.0,0.064681]
[1643688495260,0.00175753,38657.0,38654.0,0.064681]
[1643688495861,0.00175753,38657.0,38654.0,0.114681]
[1643688496262,0.08781337,38658.0,38654.0,0.107561]
[1643688496462,0.00175755,38657.0,38654.0,0.107561]
[1643688497463,0.08781337,38658.0,38654.0,0.107561]
[1643688497662,0.00175755,38657.0,38654.0,0.081661]
[1643688497906,0.00168755,38657.0,38654.0,0.064681]
[1643688498607,0.08781337,38658.0,38654.0,0.064681]
[1643688499208,0.08781337,38658.0,38654.0,0.114681]
[1643688500008,0.08957099,38658.0,38654.0,0.114681]
[1643688501011,0.08781337,38658.0,38654.0,0.114681]
[1643688501211,0.08937351,38658.0,38654.0,0.114681]
[1643688502259,0.08781337,38658.0,38654.0,0.05]
[1643688502460,0.08937351,38658.0,38654.0,0.05]
[1643688503160,0.08937351,38658.0,38652.0,0.00061483]
[1643688503359,0.08781337,38658.0,38652.0,0.00061483]
[1643688503760,0.08937351,38658.0,38652.0,0.00061483]
[1643688504558,0.08781337,38658.0,38652.0,0.00061483]
[1643688504760,0.08781337,38658.0,38653.0,0.064684]
[1643688505060,0.00153079,38657.0,38653.0,0.06460315]
[1643688505711,0.27407035,38659.0,38653.0,0.06460315]
[1643688506116,0.00157522,38657.0,38652.0,0.12998146]
[1643688506917,0.07369595,38654.0,38652.0,0.12998146]
[1643688507114,0.07369595,38654.0,38653.0,0.348798]
[1643688507315,0.07369595,38654.0,38653.0,0.398798]
[1643688507719,0.00157521,38657.0,38653.0,0.398798]
[1643688508217,0.1243,38661.0,38653.0,0.463483]
[1643688508417,0.00160457,38657.0,38655.0,0.06468142]
[1643688509482,0.29745391,38660.0,38655.0,0.12936342]
[1643688509657,0.00159457,38658.0,38655.0,0.12936342]
[1643688510660,0.29745391,38660.0,38655.0,0.12936342]
[1643688510862,0.00159456,38658.0,38655.0,0.12936342]
[1643688511064,0.00159456,38658.0,38655.0,0.06468142]
[1643688511863,0.29745391,38660.0,38655.0,0.06468142]
[1643688512067,1.89067149,38658.0,38654.0,0.05]
[1643688512263,1.89067149,38658.0,38650.0,0.17937329]
[1643688512463,0.00159456,38658.0,38650.0,0.17937329]
[1643688512918,0.22076671,38654.0,38650.0,0.17937329]
[1643688515317,0.22076671,38654.0,38651.0,0.064687]
[1643688515915,0.31011436,38654.0,38651.0,0.064687]
[1643688516316,0.31011436,38654.0,38651.0,0.06468656]
[1643688519158,0.31011436,38654.0,38649.0,0.00143316]
[1643688519359,0.05,38653.0,38649.0,0.00143316]
[1643688519960,0.05,38653.0,38649.0,0.00286632]
[1643688520158,0.05,38653.0,38649.0,0.00143316]
[1643688520829,0.05,38653.0,38647.0,0.064695]
[1643688521129,0.05,38653.0,38649.0,0.00143316]
[1643688522131,0.05,38653.0,38649.0,0.064691]
[1643688522533,0.05,38653.0,38649.0,0.06630759]
[1643688523331,0.05,38653.0,38649.0,0.064691]
[1643688523530,0.05,38653.0,38649.0,0.06632232]
[1643688524566,0.05,38653.0,38649.0,0.064691]
[1643688524765,0.05,38653.0,38649.0,0.06632232]
[1643688525765,0.05,38653.0,38649.0,0.064691]
[1643688525965,0.05,38653.0,38649.0,0.00163132]
[1643688526966,0.05,38653.0,38646.0,0.179379]
[1643688527166,0.05,38653.0,38649.0,0.00175584]
[1643688528007,0.24758752,38651.0,38649.0,0.00175584]
[1643688528207,0.24758752,38651.0,38646.0,0.179379]
[1643688528409,0.05,38653.0,38649.0,0.00175584]
[1643688529407,0.34259553,38653.0,38648.0,0.064694]
[1643688529608,0.34259553,38653.0,38649.0,0.00175584]
[1643688530609,0.34259553,38653.0,38648.0,0.064694]
[1643688530812,0.34259553,38653.0,38649.0,0.00170541]
[1643688531759,0.34259553,38653.0,38646.0,0.179379]
[1643688531959,0.34259553,38653.0,38649.0,0.00170541]
[1643688532961,0.34259553,38653.0,38646.0,0.129379]
[1643688533159,0.34259553,38653.0,38640.0,0.99979279]
[1643688533160,0.25892424,38652.0,38649.0,0.00170541]
[1643688533360,0.2588458,38652.0,38649.0,0.00170541]
[1643688533559,0.0519,38651.0,38649.0,0.00170541]
[1643688534162,0.37273567,38643.0,38640.0,0.5]
[1643688535620,0.37273567,38643.0,38640.0,0.47175626]
[1643688536617,0.37273567,38643.0,38640.0,0.47]
[1643688536917,0.07594793,38643.0,38640.0,0.53607689]
[1643688537119,0.05,38644.0,38640.0,0.53607689]
[1643688537719,0.05,38644.0,38640.0,0.534707]
[1643688537920,0.05,38644.0,38640.0,0.53607687]
[1643688538124,0.13574826,38644.0,38640.0,0.53607687]
[1643688538821,0.05,38644.0,38640.0,0.53607687]
[1643688539022,0.05,38644.0,38640.0,0.534707]
[1643688539271,0.05,38644.0,38640.0,0.53607687]
[1643688539971,0.148448,38644.0,38640.0,0.53607687]
[1643688540171,0.148448,38644.0,38640.0,0.534707]
[1643688540371,0.148448,38644.0,38640.0,0.53646324]
[1643688541471,0.148448,38644.0,38640.0,0.534707]
[1643688541671,0.148448,38644.0,38640.0,0.53646324]
[1643688541971,0.05,38644.0,38640.0,0.53646324]
[1643688542674,0.05,38644.0,38640.0,0.534707]
[1643688542913,0.05,38644.0,38640.0,0.53646324]
[1643688543913,0.05,38644.0,38640.0,0.534707]
[1643688544114,0.05,38644.0,38640.0,0.47175624]
[1643688544716,0.09698759,38643.0,38640.0,0.47175624]
[1643688545116,0.09698759,38643.0,38640.0,0.47]
[1643688545316,0.09698759,38643.0,38640.0,0.47175624]
[1643688545920,0.05,38644.0,38640.0,0.47175624]
[1643688546316,0.05,38644.0,38640.0,0.47]
[1643688546518,0.05,38644.0,38640.0,0.47175626]
[1643688546761,0.2701538,38647.0,38641.0,0.064704]
[1643688547662,0.34805696,38647.0,38642.0,0.00175615]
[1643688548259,0.2701538,38647.0,38642.0,0.00175615]
[1643688548659,0.2701538,38647.0,38641.0,0.064704]
[1643688548860,0.05,38647.0,38643.0,0.00171097]
[1643688549562,0.05,38647.0,38643.0,0.06641197]
[1643688549760,0.05,38647.0,38643.0,0.064701]